bitfinex-derivatives/quotes_BTCF0:USTF0_20251209
["timestamp","ask_amount","ask_price","bid_price","bid_amount"]
[1765287846185,0.02469234,90333.0,90332.0,0.0110704]
[1765287846384,0.02469234,90333.0,90332.0,0.0170704]
[1765287846990,0.02469234,90333.0,90332.0,0.0110704]
[1765287847197,0.02469234,90333.0,90332.0,0.0170704]
[1765287847198,0.02569234,90333.0,90332.0,0.0170704]
[1765287852993,0.02569234,90333.0,90332.0,0.006]
[1765287863409,0.02555591,90333.0,90332.0,0.006]
[1765287864500,0.08483959,90333.0,90332.0,0.006]
[1765287864910,0.02555591,90333.0,90332.0,0.006]
[1765287865403,0.011072,90320.0,90318.0,0.05]
[1765287865608,0.02455591,90319.0,90318.0,0.05]
[1765287866708,0.02455591,90319.0,90318.0,0.052]
[1765287866910,0.02455591,90319.0,90318.0,0.061]
[1765287866911,0.02655591,90319.0,90318.0,0.061]
[1765287870911,0.002,90319.0,90318.0,0.061]
[1765287871109,0.02656038,90319.0,90318.0,0.061]
[1765287872812,0.38736038,90319.0,90318.0,0.061]
[1765287875414,0.44659395,90319.0,90318.0,0.0575624]
[1765287875812,0.44659395,90319.0,90318.0,0.0555624]
[1765287876012,0.44559395,90319.0,90318.0,0.0475624]
[1765287876221,0.38636038,90319.0,90318.0,0.0475624]
[1765287878522,0.0110746,90298.0,90292.0,0.3718753]
[1765287878727,0.02454316,90297.0,90294.0,0.011075]
[1765287878922,0.3608,90300.0,90294.0,0.011075]
[1765287879227,0.0245432,90299.0,90294.0,0.011075]
[1765287879410,0.0245432,90298.0,90296.0,0.0110749]
[1765287879615,0.0245432,90297.0,90293.0,0.0110752]
[1765287879811,0.002,90298.0,90293.0,0.0110752]
[1765287880024,0.0110754,90292.0,90290.0,0.00110755]
[1765287880227,0.38534101,90291.0,90290.0,0.00110755]
[1765287881121,0.38534101,90291.0,90283.0,0.00011339]
[1765287881122,0.0080763,90284.0,90283.0,0.00011339]
[1765287881325,0.0110768,90280.0,90265.0,0.00110786]
[1765287881517,0.3718768,90280.0,90265.0,0.00110786]
[1765287881821,0.39641781,90280.0,90265.0,0.00110786]
[1765287882321,0.39653344,90280.0,90268.0,0.0110783]
[1765287882621,0.38545664,90280.0,90267.0,0.0110784]
[1765287882922,0.38645664,90280.0,90270.0,0.011078]
[1765287883225,0.38645664,90280.0,90265.0,0.00110786]
[1765287883226,0.38745664,90280.0,90265.0,0.00110786]
[1765287883726,0.38745664,90280.0,90276.0,0.0110773]
[1765287885117,0.38745664,90280.0,90269.0,0.0110781]
[1765287885311,0.3608,90270.0,90269.0,0.0110781]
[1765287885523,0.45720828,90280.0,90272.0,0.0110777]
[1765287885719,0.02457057,90279.0,90265.0,0.00110786]
[1765287886026,0.10537015,90275.0,90265.0,0.01218636]
[1765287886226,0.02456277,90274.0,90265.0,0.01218636]
[1765287886527,0.0110773,90276.0,90265.0,0.01218636]
[1765287886716,0.11885542,90275.0,90265.0,0.01218636]
[1765287886918,0.02456277,90274.0,90265.0,0.01218636]
[1765287888125,0.09429265,90275.0,90265.0,0.01218636]
[1765287888425,0.02455216,90274.0,90265.0,0.01218636]
[1765287888730,0.371878,90271.0,90265.0,0.00110786]
[1765287888918,0.3608,90271.0,90266.0,0.0110785]
[1765287889117,0.00011857,90270.0,90265.0,0.00110786]
[1765287889515,0.00011857,90270.0,90266.0,0.0110785]
[1765287889722,0.00011857,90270.0,90265.0,0.00110786]
[1765287889925,0.00011857,90270.0,90266.0,0.0110785]
[1765287890125,0.00011857,90270.0,90266.0,0.01083035]
[1765287890325,0.00011857,90270.0,90265.0,0.00110786]
[1765287890522,0.0110782,90269.0,90265.0,0.00110786]
[1765287890724,0.00011857,90270.0,90265.0,0.00110786]
[1765287891225,0.00011857,90270.0,90269.0,0.0110782]
[1765287891627,0.00211857,90270.0,90269.0,0.0110782]
[1765287896431,0.00211857,90270.0,90266.0,0.0110785]
[1765287897233,0.00211857,90270.0,90265.0,0.00110786]
[1765287897234,0.02456029,90269.0,90265.0,0.00110786]
[1765287897536,0.0110784,90267.0,90265.0,0.00110786]
[1765287897721,0.02456029,90266.0,90265.0,0.00110786]
[1765287898834,0.02436025,90266.0,90265.0,0.00110786]
[1765287899126,0.001,90266.0,90265.0,0.00110786]
[1765287899933,0.09077886,90266.0,90265.0,0.00110786]
[1765287900827,0.001,90266.0,90265.0,0.00110786]
[1765287901023,0.002,90266.0,90265.0,0.00110786]
[1765287901930,0.05918579,90292.0,90283.0,0.0110765]
[1765287902235,0.3608,90295.0,90283.0,0.0110765]
[1765287903235,0.00416608,90284.0,90283.0,0.0110765]
[1765287904230,0.00816608,90284.0,90283.0,0.0110765]
[1765287904938,0.00616608,90284.0,90283.0,0.0110765]
[1765287905535,0.00316608,90284.0,90280.0,0.3608]
[1765287905741,0.00316608,90284.0,90260.0,0.3608]
[1765287905742,0.0110776,90274.0,90260.0,0.3608]
[1765287906034,0.3718775,90275.0,90267.0,0.0110783]
[1765287906335,0.3608,90275.0,90272.0,0.0110778]
[1765287906837,0.3608,90275.0,90264.0,0.0110788]
[1765287907036,0.3608,90267.0,90265.0,0.01218646]
[1765287908037,0.36034773,90267.0,90265.0,0.01218646]
[1765287908839,0.36134773,90267.0,90265.0,0.01218646]
[1765287909438,0.36234773,90267.0,90265.0,0.01218646]
[1765287911026,0.02464758,90266.0,90265.0,0.01218646]
[1765287912541,0.02564758,90266.0,90265.0,0.01218646]
[1765287913130,0.02564758,90266.0,90265.0,0.00110786]
[1765287913330,0.02664758,90266.0,90265.0,0.00110786]
[1765287915140,0.38744758,90266.0,90265.0,0.00110786]
[1765287918944,0.0110795,90259.0,90252.0,0.0110802]
[1765287919144,0.3608,90253.0,90252.0,0.0110802]
[1765287919344,0.38544758,90253.0,90252.0,0.0110802]
[1765287920347,0.38544758,90253.0,90252.0,0.0120802]
[1765287921148,0.38744758,90253.0,90252.0,0.0120802]
[1765287923644,0.02664758,90253.0,90252.0,0.3728802]
[1765287923843,0.002,90253.0,90252.0,0.3728802]
[1765287924149,0.00016618,90265.0,90264.0,0.0110788]
[1765287924944,0.02478131,90265.0,90263.0,0.0110789]
[1765287925148,0.02461513,90264.0,90263.0,0.0110789]
[1765287926746,0.02761513,90264.0,90263.0,0.0110789]
[1765287930855,0.003,90264.0,90263.0,0.0110789]
[1765287932249,0.00016618,90265.0,90263.0,0.0110789]
[1765287933347,0.00216618,90265.0,90263.0,0.0120789]
[1765287933545,0.00316618,90265.0,90263.0,0.0120789]
[1765287935353,0.00016618,90265.0,90263.0,0.0110789]
[1765287935543,0.00216618,90265.0,90263.0,0.0140789]
[1765287936145,0.00216618,90265.0,90263.0,0.0160789]
[1765287936655,0.02463745,90264.0,90263.0,0.0160789]
[1765287938444,0.02463745,90264.0,90263.0,0.0110789]
[1765287938757,0.02663745,90264.0,90263.0,0.0160789]
[1765287939939,0.02463745,90264.0,90263.0,0.0110789]
[1765287940152,0.02663745,90264.0,90263.0,0.0160789]
[1765287940350,0.02663745,90264.0,90263.0,0.005]
[1765287940945,0.39851625,90264.0,90263.0,0.005]
[1765287941144,0.38743745,90264.0,90263.0,0.005]
[1765287942952,0.38743745,90264.0,90263.0,0.0160789]
[1765287943850,0.38743745,90264.0,90263.0,0.005]
[1765287945155,0.3628,90264.0,90263.0,0.005]
[1765287945355,0.38756533,90264.0,90263.0,0.005]
[1765287948752,0.44670515,90264.0,90248.0,0.0110807]
[1765287949058,0.3608,90252.0,90248.0,0.0110807]
[1765287949263,0.02476533,90251.0,90248.0,0.0110807]
[1765287950661,0.02476533,90251.0,90248.0,0.0120807]
[1765287951958,0.02476533,90251.0,90248.0,0.0130807]
[1765287952552,0.02676533,90251.0,90248.0,0.0120807]
[1765287952756,0.02476533,90250.0,90248.0,0.0120807]
[1765287953846,0.02476533,90250.0,90248.0,0.001]
[1765287954052,0.0110816,90241.0,90240.0,0.00110816]
[1765287954355,0.3718816,90241.0,90240.0,0.00110816]
[1765287954555,0.39564693,90241.0,90240.0,0.00110816]
[1765287955457,0.39764693,90241.0,90240.0,0.00110816]
[1765287956262,0.39864693,90241.0,90240.0,0.00110816]
[1765287957755,0.0110828,90232.0,90223.0,0.01120202]
[1765287957960,0.38556533,90231.0,90223.0,0.01120202]
[1765287958146,0.02476533,90230.0,90223.0,0.01120202]
[1765287958351,0.02476533,90229.0,90223.0,0.01120202]
[1765287958552,0.3608,90231.0,90223.0,0.01120202]
[1765287958748,0.02470486,90230.0,90223.0,0.01120202]
[1765287958961,0.02470486,90229.0,90223.0,0.00011822]
[1765287959265,0.3608,90231.0,90223.0,0.00011822]
[1765287959266,0.0110836,90225.0,90223.0,0.00011822]
[1765287959653,0.373883,90230.0,90223.0,0.00011822]
[1765287959852,0.02469492,90229.0,90223.0,0.00011822]
[1765287960074,0.02469492,90228.0,90225.0,0.0110835]
[1765287960356,0.3608,90230.0,90229.0,0.0110831]
[1765287960758,0.0110798,90257.0,90236.0,0.0110822]
[1765287960759,0.3608,90244.0,90236.0,0.0110822]
[1765287960955,0.3608,90244.0,90243.0,0.0110814]
[1765287961147,0.3608,90252.0,90251.0,0.0110804]
[1765287961354,0.38550006,90252.0,90251.0,0.0110804]
[1765287961863,0.3608,90252.0,90251.0,0.0110804]
[1765287962261,0.38550576,90252.0,90251.0,0.0110804]
[1765287962457,0.3608,90252.0,90251.0,0.0110804]
[1765287962964,0.3688,90252.0,90251.0,0.0110804]
[1765287963165,0.39351751,90252.0,90251.0,0.0110804]
[1765287963366,0.39190511,90252.0,90251.0,0.0110804]
[1765287963965,0.3671876,90252.0,90251.0,0.0110804]
[1765287964163,0.39191054,90252.0,90251.0,0.0110804]
[1765287964866,0.3671876,90252.0,90251.0,0.0110804]
[1765287965362,0.008,90252.0,90251.0,0.3718804]
[1765287966260,0.00016618,90261.0,90260.0,0.0110793]
[1765287967261,0.3608,90273.0,90272.0,0.0110778]
[1765287967466,0.38554459,90273.0,90272.0,0.0110778]
[1765287968266,0.3608,90273.0,90272.0,0.0110778]
[1765287969062,0.3678,90273.0,90272.0,0.0120778]
[1765287969360,0.3748,90273.0,90272.0,0.0120778]
[1765287970263,0.014,90273.0,90272.0,0.0120778]
[1765287975864,0.014,90273.0,90272.0,0.3728778]
[1765287976772,0.00016618,90282.0,90281.0,0.0110767]
[1765287978077,0.00416618,90282.0,90281.0,0.0110767]
[1765287978862,0.00416618,90282.0,90281.0,0.3718767]
[1765287979064,0.00516618,90282.0,90281.0,0.3738767]
[1765287982675,0.00516618,90282.0,90281.0,0.0130767]
[1765287982874,0.00516618,90282.0,90281.0,0.002]
[1765287983686,0.00516618,90282.0,90281.0,0.87788]
[1765287983875,0.00516618,90282.0,90281.0,0.51744]
[1765287986477,0.00516618,90282.0,90281.0,0.002]
[1765287987378,0.02984237,90282.0,90281.0,0.002]
[1765287987681,0.00516618,90282.0,90281.0,0.002]
[1765287988278,0.02986634,90282.0,90281.0,0.002]
[1765287991086,0.00516618,90282.0,90281.0,0.002]
[1765287991277,0.02990505,90282.0,90281.0,0.002]
[1765287991583,0.00110755,90290.0,90289.0,0.0110757]
[1765287993070,0.00110755,90290.0,90289.0,0.0120757]
[1765287993282,0.00210755,90290.0,90289.0,0.3728757]
[1765287993488,0.00510755,90290.0,90289.0,0.3728757]
[1765287994671,0.00016618,90299.0,90298.0,0.0110746]
[1765287994968,0.3608,90320.0,90312.0,0.0110729]
[1765287995175,0.02478454,90314.0,90312.0,0.0110729]
[1765287995383,0.02478454,90313.0,90312.0,0.0110729]
[1765287995584,0.02478454,90314.0,90312.0,0.0110729]
[1765287996382,0.02478454,90314.0,90312.0,0.0120729]
[1765287997285,0.02878454,90314.0,90312.0,0.0110729]
[1765287997482,0.02478454,90313.0,90312.0,0.0120729]
[1765287999087,0.02678454,90313.0,90312.0,0.0120729]
[1765287999675,0.03078454,90313.0,90312.0,0.0120729]
[1765288000877,0.006,90313.0,90312.0,0.0120729]
[1765288002185,0.00016618,90322.0,90321.0,0.0110718]
[1765288002482,0.00016618,90322.0,90321.0,0.8872318]
[1765288003576,0.00516618,90322.0,90321.0,0.8872318]
[1765288003772,0.01016618,90322.0,90321.0,0.8882318]
[1765288008894,0.01016618,90322.0,90321.0,0.3728718]
[1765288009198,0.03491047,90322.0,90321.0,0.42316]
[1765288013090,0.03491047,90322.0,90321.0,0.001]
[1765288017010,0.03491047,90322.0,90312.0,0.0110729]
[1765288017205,0.0110725,90316.0,90312.0,0.0110729]
[1765288017510,0.02474429,90315.0,90312.0,0.0110729]
[1765288017695,0.01016618,90322.0,90320.0,0.0110719]
[1765288018004,0.02475829,90321.0,90320.0,0.0110719]
[1765288018602,0.00316618,90322.0,90320.0,0.0110719]
[1765288019109,0.008,90321.0,90320.0,0.0120719]
[1765288019705,0.004,90321.0,90320.0,0.0120719]
[1765288019905,0.00816618,90322.0,90320.0,0.0120719]
[1765288021013,0.02479382,90321.0,90320.0,0.001]
[1765288021511,0.0110719,90320.0,90314.0,0.0110726]
[1765288021709,0.02479382,90319.0,90314.0,0.0110726]
[1765288022013,0.02479382,90319.0,90316.0,0.0110724]
[1765288022312,0.02479382,90319.0,90313.0,0.0110727]
[1765288022811,0.02679382,90319.0,90314.0,0.001]
[1765288023011,0.02479382,90318.0,90314.0,0.001]
[1765288023209,0.0110723,90317.0,90314.0,0.001]
[1765288023416,0.0110725,90315.0,90313.0,0.001]
[1765288023707,0.02479382,90314.0,90313.0,0.001]
[1765288023909,0.38559382,90314.0,90313.0,0.001]
[1765288024808,0.38563372,90314.0,90313.0,0.001]
[1765288025109,0.38563372,90314.0,90312.0,0.0110729]
[1765288025309,0.02483372,90313.0,90312.0,0.0110729]
[1765288025898,0.02483372,90313.0,90306.0,0.51504]
[1765288026103,0.05917356,90312.0,90306.0,0.51504]
[1765288026303,0.02483372,90311.0,90306.0,0.51504]
[1765288026514,0.02483372,90310.0,90309.0,0.0110732]
[1765288028610,0.02783372,90310.0,90309.0,0.0110732]
[1765288029818,0.02983372,90310.0,90309.0,0.0120732]
[1765288040713,0.02983372,90310.0,90309.0,0.001]
[1765288041518,0.02983372,90310.0,90309.0,0.3618]
[1765288042020,0.02983372,90310.0,90309.0,0.001]
[1765288043923,0.01991997,90310.0,90309.0,0.3618]
[1765288044814,0.005,90310.0,90309.0,0.3618]
[1765288046911,0.005,90310.0,90309.0,0.001]
[1765288047117,0.005,90310.0,90309.0,0.46848]
[1765288048524,0.3658,90310.0,90309.0,0.46848]
[1765288049223,0.36555876,90310.0,90309.0,0.46848]
[1765288049423,0.42489787,90310.0,90309.0,0.46848]
[1765288050325,0.36555876,90310.0,90309.0,0.46848]
[1765288051327,0.36411087,90310.0,90309.0,0.46848]
[1765288055319,0.00331087,90310.0,90309.0,0.46848]
[1765288056122,0.02788084,90310.0,90309.0,0.46848]
[1765288058834,0.02788317,90310.0,90309.0,0.46848]
[1765288070961,0.02788317,90310.0,90309.0,0.4795533]
[1765288083466,0.02788317,90310.0,90309.0,0.0120733]
[1765288083667,0.02788317,90310.0,90309.0,0.001]
[1765288087268,0.38868317,90310.0,90309.0,0.001]
[1765288087575,0.0110733,90309.0,90304.0,0.00016618]
[1765288087775,0.3718738,90305.0,90304.0,0.00016618]
[1765288088073,0.3964461,90305.0,90304.0,0.00016618]
[1765288089077,0.0110749,90296.0,90295.0,0.51476]
[1765288089277,0.3608,90296.0,90295.0,0.51476]
[1765288089474,0.3853723,90296.0,90295.0,0.51476]
[1765288091271,0.3863723,90296.0,90295.0,0.002]
[1765288092076,0.3863723,90296.0,90286.0,0.00016608]
[1765288092281,0.3608,90287.0,90286.0,0.00016608]
[1765288092478,0.3853723,90287.0,90286.0,0.00016608]
[1765288092974,0.3964483,90287.0,90286.0,0.00016608]
[1765288093271,0.3863723,90287.0,90286.0,0.00416608]
[1765288094377,0.3853723,90287.0,90286.0,0.00016608]
[1765288094571,0.3863723,90287.0,90286.0,0.00316608]
[1765288095273,0.3863723,90287.0,90286.0,0.00216608]
[1765288099772,0.00016608,90300.0,90297.0,0.0110747]
[1765288099978,0.00016608,90300.0,90299.0,0.3608]
[1765288101067,0.35250902,90317.0,90300.0,0.0110743]
[1765288101379,0.35250902,90317.0,90300.0,0.11777821]
[1765288102082,0.35250902,90317.0,90316.0,0.0110724]
[1765288102475,0.35450902,90317.0,90316.0,0.0110724]
[1765288102871,0.002,90317.0,90316.0,0.0110724]
[1765288103179,0.005,90317.0,90316.0,0.0110724]
[1765288103778,0.004,90317.0,90316.0,0.0120724]
[1765288103974,0.009,90317.0,90316.0,0.0120724]
[1765288105981,0.009,90317.0,90316.0,0.001]
[1765288107378,0.0110727,90314.0,90310.0,0.011073]
[1765288108464,0.0180724,90317.0,90312.0,0.0110728]
[1765288108667,0.0110725,90315.0,90312.0,0.0110728]
[1765288109081,0.002,90314.0,90312.0,0.0110728]
[1765288109482,0.004,90314.0,90312.0,0.0110728]
[1765288109875,0.0110728,90313.0,90309.0,0.0110732]
[1765288110074,0.0110733,90309.0,90307.0,0.00016608]
[1765288111266,0.371873,90312.0,90308.0,0.0110734]
[1765288111470,0.371873,90312.0,90310.0,0.0110731]
[1765288111677,0.02450835,90311.0,90310.0,0.0110731]
[1765288112972,0.02650835,90311.0,90310.0,0.0120731]
[1765288113481,0.004,90311.0,90310.0,0.3728731]
[1765288114470,0.35326777,90329.0,90326.0,0.0110711]
[1765288114671,0.0245125,90328.0,90326.0,0.0110711]
[1765288114974,0.0245125,90327.0,90326.0,0.0110711]
[1765288115770,0.0245125,90327.0,90326.0,0.0120711]
[1765288116176,0.011,90329.0,90326.0,0.0120711]
[1765288116480,0.00016608,90336.0,90335.0,0.0110701]
[1765288119282,0.01216608,90336.0,90335.0,0.0120701]
[1765288121879,0.35637559,90348.0,90347.0,0.0110686]
[1765288122181,0.38084027,90348.0,90347.0,0.0110686]
[1765288122484,0.35637559,90348.0,90347.0,0.0110686]
[1765288122681,0.00110663,90365.0,90364.0,0.0110665]
[1765288122876,0.02557064,90365.0,90361.0,0.0110669]
[1765288123072,0.02446401,90364.0,90361.0,0.0110669]
[1765288123486,0.00110663,90365.0,90364.0,0.0110665]
[1765288123881,0.0255654,90365.0,90364.0,0.0110665]
[1765288124076,0.0366319,90365.0,90355.0,0.0942596]
[1765288124272,0.011067,90361.0,90355.0,0.51520608]
[1765288124472,0.02445877,90360.0,90355.0,0.51520608]
[1765288124681,0.02446719,90359.0,90356.0,0.0110675]
[1765288124879,0.02446719,90358.0,90356.0,0.0110675]
[1765288125073,0.00710663,90365.0,90363.0,0.0110666]
[1765288125274,0.02446745,90364.0,90363.0,0.0110666]
[1765288126980,0.02746745,90364.0,90363.0,0.0110666]
[1765288127483,0.003,90364.0,90363.0,0.0110666]
[1765288129286,0.00110663,90365.0,90363.0,0.0110666]
[1765288129478,1e-08,90365.0,90363.0,0.0110666]
[1765288130286,0.001,90364.0,90363.0,0.0170666]
[1765288130585,0.001,90364.0,90363.0,0.006]
[1765288130781,0.001,90364.0,90363.0,0.4506]
[1765288130981,0.00010794,90374.0,90363.0,0.4506]
[1765288131185,0.0244566,90373.0,90364.0,0.0110665]
[1765288131385,0.0244566,90372.0,90364.0,0.0110665]
[1765288131684,0.001,90365.0,90363.0,0.4556]
[1765288131881,0.001,90365.0,90364.0,0.0110665]
[1765288132288,0.00010794,90374.0,90368.0,0.0110659]
[1765288132479,0.0254484,90373.0,90368.0,0.0110659]
[1765288132673,0.0244484,90372.0,90368.0,0.0110659]
[1765288133190,0.0244484,90371.0,90368.0,0.0110659]
[1765288133381,0.0244484,90370.0,90368.0,0.0110659]
[1765288133583,0.0244484,90369.0,90368.0,0.0110659]
[1765288134074,0.0110654,90373.0,90364.0,0.01]
[1765288134280,0.02444391,90372.0,90364.0,0.01]
[1765288134483,0.02444391,90371.0,90368.0,0.001]
[1765288134689,0.02444391,90370.0,90368.0,0.001]
[1765288134890,0.0110654,90373.0,90368.0,0.008]
[1765288135090,0.02444391,90372.0,90368.0,0.008]
[1765288135385,0.02444391,90371.0,90366.0,0.0110662]
[1765288135592,0.02444391,90370.0,90368.0,0.011066]
[1765288135786,0.0110654,90373.0,90368.0,0.011066]
[1765288136095,0.02444183,90372.0,90368.0,0.019066]
[1765288136399,0.02444183,90371.0,90368.0,0.019066]
[1765288136692,0.02444183,90370.0,90368.0,0.019066]
[1765288136883,0.02444183,90369.0,90368.0,0.019066]
[1765288137492,0.00010794,90374.0,90373.0,0.0110654]
[1765288137884,0.0245486,90374.0,90373.0,0.0110654]
[1765288138988,0.0245486,90374.0,90373.0,0.0160654]
[1765288140895,0.0245486,90374.0,90373.0,0.005]
[1765288141286,0.3964139,90374.0,90373.0,0.005]
[1765288141985,0.0110658,90370.0,90365.0,0.0110663]
[1765288142190,0.02444066,90369.0,90367.0,0.0110661]
[1765288142390,0.36090794,90374.0,90361.0,0.3608]
[1765288142391,0.36090794,90374.0,90371.0,0.0110656]
[1765288142591,0.02449171,90373.0,90371.0,0.0110656]
[1765288142780,0.02449171,90372.0,90371.0,0.0110656]
[1765288144994,0.02449171,90372.0,90371.0,0.0120656]
[1765288145196,0.05931148,90372.0,90371.0,0.0120656]
[1765288145391,0.05931148,90372.0,90371.0,0.0180656]
[1765288145592,0.02449171,90372.0,90371.0,0.0180656]
[1765288145990,0.02449171,90373.0,90371.0,0.0190656]
[1765288146185,0.02449171,90372.0,90371.0,0.0190656]
[1765288146391,0.02449171,90373.0,90371.0,0.0190656]
[1765288146591,0.02449171,90372.0,90371.0,0.0190656]
[1765288146997,0.02449171,90373.0,90371.0,0.0190656]
[1765288147198,0.02449171,90372.0,90371.0,0.0190656]
[1765288147383,0.02449171,90372.0,90371.0,0.0180656]
[1765288147588,0.02449171,90373.0,90371.0,0.0190656]
[1765288147799,0.02449171,90372.0,90371.0,0.0190656]
[1765288148193,0.08380319,90373.0,90371.0,0.0110656]
[1765288148400,0.02449171,90372.0,90371.0,0.0190656]
[1765288148800,0.02449171,90373.0,90371.0,0.8876656]
[1765288148999,0.02449171,90372.0,90371.0,0.8946656]
[1765288149191,0.02449171,90373.0,90371.0,0.8946656]
[1765288151096,0.02449171,90373.0,90372.0,0.51476]
[1765288152888,0.02449171,90373.0,90372.0,0.52176]
[1765288153197,0.00896231,90373.0,90372.0,0.52176]
[1765288153387,0.00010794,90374.0,90373.0,0.0110654]
[1765288155196,0.00010794,90374.0,90373.0,0.0170654]
[1765288155503,0.00110632,90390.0,90389.0,0.0110635]
[1765288157006,0.01216962,90390.0,90380.0,0.00016599]
[1765288157205,0.05937393,90389.0,90380.0,0.00016599]
[1765288157511,0.05937393,90389.0,90387.0,0.0110636]
[1765288158205,0.05937393,90389.0,90380.0,0.00016599]
[1765288158508,0.05937393,90389.0,90380.0,0.00516599]
[1765288158914,0.06137393,90389.0,90380.0,0.00516599]
[1765288159104,0.06137393,90389.0,90387.0,0.003]
[1765288159405,0.0130635,90389.0,90387.0,0.003]
[1765288159601,0.0110637,90387.0,90382.0,0.0110642]
[1765288159797,0.0110638,90387.0,90381.0,0.0110644]
[1765288160000,0.0110643,90383.0,90380.0,0.00516599]
[1765288160198,0.05937393,90384.0,90359.0,0.0110671]
[1765288160199,0.0110665,90365.0,90359.0,0.0110671]
[1765288160411,0.0110661,90368.0,90361.0,0.3718668]
[1765288160714,0.3608,90362.0,90358.0,0.0110672]
[1765288161104,0.3608,90362.0,90347.0,0.68404]
[1765288161309,0.3608,90362.0,90360.0,0.011067]
[1765288162706,0.3608,90362.0,90360.0,0.018067]
[1765288163512,0.3608,90362.0,90360.0,0.019067]
[1765288164203,0.00016567,90364.0,90360.0,0.019067]
[1765288164204,0.00016567,90364.0,90363.0,0.0110666]
[1765288165414,0.02464442,90364.0,90363.0,0.0110666]
[1765288165614,0.02464442,90364.0,90363.0,0.0170666]
[1765288166617,0.02464442,90364.0,90363.0,0.0180666]
[1765288167404,0.02464226,90364.0,90363.0,0.0180666]
[1765288177214,0.02464226,90364.0,90363.0,0.0120666]
[1765288177419,0.02464226,90364.0,90363.0,0.0170666]
[1765288179715,0.02464226,90364.0,90363.0,0.0160666]
[1765288179919,0.02464226,90364.0,90363.0,0.0120666]
[1765288180120,0.02464226,90364.0,90363.0,0.0170666]
[1765288181114,0.02464226,90364.0,90363.0,0.0120666]
[1765288181321,0.02464226,90364.0,90363.0,0.0170666]
[1765288181521,0.02464226,90364.0,90363.0,0.0160666]
[1765288181710,0.02464226,90364.0,90363.0,0.0170666]
[1765288181913,0.38544226,90364.0,90363.0,0.006]
[1765288182207,0.38544226,90364.0,90350.0,0.0110682]
[1765288182414,0.3608,90352.0,90349.0,0.0110684]
[1765288182611,0.03554469,90351.0,90349.0,0.0110684]
[1765288182822,0.02447659,90350.0,90349.0,0.0110684]
[1765288183212,0.3608,90352.0,90351.0,0.0110681]
[1765288183407,0.3852658,90352.0,90351.0,0.0110681]
[1765288183923,0.0244658,90352.0,90351.0,0.0110681]
[1765288184718,0.0244658,90352.0,90351.0,0.0150681]
[1765288185820,0.0244658,90352.0,90351.0,0.004]
[1765288186123,0.0244658,90352.0,90351.0,0.0130681]
[1765288186723,0.0244658,90352.0,90348.0,0.0110684]
[1765288186925,0.0110679,90353.0,90351.0,0.002]
[1765288187224,0.0244728,90352.0,90351.0,0.002]
[1765288187425,0.0355409,90352.0,90351.0,0.001]
[1765288189422,0.0110685,90348.0,90345.0,0.00016599]
[1765288189612,0.0244728,90347.0,90345.0,0.01123469]
[1765288189816,0.0110685,90348.0,90347.0,0.0110686]
[1765288190011,0.0110685,90349.0,90347.0,0.0110686]
[1765288190217,0.0110686,90347.0,90345.0,0.00016599]
[1765288190411,0.02449806,90346.0,90345.0,0.01123479]
[1765288190718,0.02449806,90346.0,90345.0,0.01423479]
[1765288190916,0.02449806,90349.0,90345.0,0.01523479]
[1765288191321,0.02449806,90349.0,90347.0,0.0110686]
[1765288191522,0.02449806,90348.0,90347.0,0.0110686]
[1765288191925,0.02449806,90353.0,90347.0,0.0110686]
[1765288192121,0.02449806,90352.0,90347.0,0.0110686]
[1765288192326,0.02449806,90351.0,90345.0,0.00316599]
[1765288192520,0.3608,90346.0,90345.0,0.00216599]
[1765288192828,0.38529806,90346.0,90345.0,0.00216599]
[1765288193322,0.38529806,90346.0,90345.0,0.00016599]
[1765288193519,0.38529806,90346.0,90345.0,0.00216599]
[1765288193918,0.38529806,90346.0,90345.0,0.00016599]
[1765288194115,0.38529806,90346.0,90345.0,0.00116599]
[1765288195729,0.38629806,90346.0,90345.0,0.00116599]
[1765288196232,0.38629806,90346.0,90345.0,0.00016599]
[1765288196442,0.38729806,90346.0,90345.0,0.00016599]
[1765288200633,0.011071,90328.0,90323.0,0.0110715]
[1765288200826,0.02449806,90327.0,90322.0,0.0110716]
[1765288201135,0.02449806,90326.0,90315.0,0.01217974]
[1765288201334,0.0110722,90318.0,90315.0,0.01217974]
[1765288201524,0.02449806,90317.0,90315.0,0.01217974]
[1765288201834,0.02449806,90316.0,90315.0,0.01217974]
[1765288202623,0.02449806,90316.0,90315.0,0.01517974]
[1765288203137,0.02549806,90316.0,90315.0,0.02117974]
[1765288203725,0.02449806,90316.0,90315.0,0.01817974]
[1765288204131,0.02449806,90316.0,90315.0,0.01617974]
[1765288205528,0.02449806,90316.0,90315.0,0.00510724]
[1765288209937,0.0110734,90308.0,90307.0,0.00016608]
[1765288210238,0.39637146,90308.0,90307.0,0.00016608]
[1765288211142,0.39637146,90308.0,90307.0,0.00216608]
[1765288212144,0.39737146,90308.0,90307.0,0.00616608]
[1765288212833,0.38629806,90308.0,90307.0,0.00616608]
[1765288214837,0.0110753,90293.0,90290.0,0.00110755]
[1765288215638,0.3608,90295.0,90293.0,0.0110752]
[1765288216342,0.0110754,90292.0,90290.0,0.01310755]
[1765288216643,0.02441835,90291.0,90290.0,0.00510755]
[1765288216948,0.02441835,90291.0,90290.0,0.00110755]
[1765288217344,0.02441835,90291.0,90287.0,0.0001038]
[1765288217345,0.0110756,90290.0,90287.0,0.0001038]
[1765288217541,0.0110761,90286.0,90285.0,0.00016608]
[1765288217738,0.3718761,90286.0,90285.0,0.00016608]
[1765288217951,0.0110768,90280.0,90279.0,0.00022154]
[1765288218135,0.0110776,90274.0,90266.0,0.0110785]
[1765288218449,0.3718779,90272.0,90267.0,0.0110783]
[1765288218646,0.02441835,90271.0,90267.0,0.0110783]
[1765288218953,0.3718779,90272.0,90267.0,0.0110783]
[1765288219133,0.02439821,90271.0,90260.0,0.09430957]
[1765288219338,0.3608,90272.0,90260.0,0.09430957]
[1765288219546,0.3628,90272.0,90267.0,0.001]
[1765288219835,0.0110781,90270.0,90267.0,0.001]
[1765288220246,0.3628,90272.0,90267.0,0.0120783]
[1765288220445,0.02438405,90271.0,90267.0,0.0120783]
[1765288220657,0.3628,90272.0,90267.0,0.0120783]
[1765288220837,0.02438406,90271.0,90267.0,0.0120783]
[1765288221034,0.3628,90272.0,90270.0,0.011078]
[1765288221242,0.02438966,90271.0,90267.0,0.0110784]
[1765288221553,0.001,90271.0,90268.0,0.0110782]
[1765288221849,0.3608,90272.0,90268.0,0.0110782]
[1765288222041,0.02538132,90271.0,90268.0,0.0110782]
[1765288222242,0.02438132,90270.0,90268.0,0.0110782]
[1765288222845,0.002,90271.0,90268.0,0.0110782]
[1765288223150,0.02438139,90270.0,90268.0,0.0110782]